fUSD/lending_fUSD_20240221
["ID","MTS","AMOUNT","RATE_DAILY","PERIOD"]
[314808018,1708559452308,-1266.39,0.00038356,2]
[314808019,1708559452318,-161.23866034,0.00038356,2]
[314808020,1708559452326,-1131.14,0.00038356,2]
[314808021,1708559452335,-785.24,0.00038356,2]
[314808022,1708559452345,-500.0,0.00038356,2]
[314808023,1708559452354,-551.22346171,0.00038356,2]
[314808024,1708559452363,-500.0,0.00038356,2]
[314808025,1708559452372,-500.0,0.00038356,2]
[314808026,1708559452381,-500.0,0.00038356,2]
[314808027,1708559452391,-500.0,0.00038356,2]
[314808028,1708559452400,-500.0,0.00038356,2]
[314808029,1708559452409,-500.0,0.00038356,2]
[314808030,1708559452419,-500.0,0.00038356,2]
[314808031,1708559452428,-500.0,0.00038356,2]
[314808032,1708559452438,-500.0,0.00038356,2]
[314808033,1708559452448,-500.0,0.00038356,2]
[314808034,1708559452458,-517.92,0.00038356,2]
[314808035,1708559452470,-488.63934385,0.00038356,2]
[314808036,1708559452483,-500.0,0.00038356,2]
[314808037,1708559452494,-500.0,0.00038356,2]
[314808038,1708559452506,-500.0,0.00038356,2]
[314808039,1708559452517,-500.0,0.00038356,2]
[314808040,1708559452526,-500.0,0.00038356,2]
[314808041,1708559452535,-500.0,0.00038356,2]
[314808042,1708559452544,-1032.41,0.00038356,2]
[314808043,1708559452553,-1721.49,0.00038356,2]
[314808044,1708559452562,-500.0,0.00038356,2]
[314808045,1708559452571,-500.0,0.00038356,2]
[314808046,1708559452581,-500.0,0.00038356,2]
[314808047,1708559452590,-500.0,0.00038356,2]
[314808048,1708559452599,-555.52,0.00038356,2]
[314808049,1708559452609,-500.0,0.00038356,2]
[314808050,1708559452618,-500.0,0.00038356,2]
[314808051,1708559452627,-500.0,0.00038356,2]
[314808052,1708559452636,-500.0,0.00038356,2]
[314808053,1708559452645,-500.0,0.00038356,2]
[314808054,1708559452654,-500.0,0.00038356,2]
[314808055,1708559452663,-500.0,0.00038356,2]
[314808056,1708559452673,-525.28,0.00038356,2]
[314808057,1708559452682,-500.0,0.00038356,2]
[314808058,1708559452691,-500.0,0.00038356,2]
[314808059,1708559452702,-500.0,0.00038356,2]
[314808060,1708559452711,-500.0,0.00038356,2]
[314808061,1708559452721,-500.0,0.00038356,2]
[314808062,1708559452731,-500.0,0.00038356,2]
[314808063,1708559452740,-500.0,0.00038356,2]
[314808064,1708559452750,-984.89,0.00038356,2]
[314808065,1708559452761,-500.0,0.00038356,2]
[314808066,1708559452770,-500.0,0.00038356,2]
[314808067,1708559452780,-500.0,0.00038356,2]
[314808068,1708559452789,-500.0,0.00038356,2]
[314808069,1708559452799,-500.0,0.00038356,2]
[314808070,1708559452808,-173.52796036,0.00038356,2]
[314808071,1708559452818,-500.0,0.00038356,2]
[314808072,1708559452827,-500.0,0.00038356,2]
[314808073,1708559452836,-500.0,0.00038356,2]
[314808074,1708559452845,-563.07296697,0.00038356,2]
[314808075,1708559452854,-500.0,0.00038356,2]
[314808076,1708559452863,-584.86989603,0.00038356,2]
[314808077,1708559452872,-1262.83,0.00038356,2]
[314808078,1708559452881,-500.0,0.00038356,2]
[314808079,1708559452890,-649.57,0.00038356,2]
[314808080,1708559452899,-500.0,0.00038356,2]
[314808081,1708559452908,-500.0,0.00038356,2]
[314808082,1708559452917,-636.74,0.00038356,2]
[314808083,1708559452926,-1430.76,0.00038356,2]
[314808084,1708559452935,-500.0,0.00038356,2]
[314808085,1708559452944,-500.0,0.00038356,2]
[314808086,1708559452953,-500.0,0.00038356,2]
[314808087,1708559452967,-500.0,0.00038356,2]
[314808088,1708559452975,-500.0,0.00038356,2]
[314808089,1708559452984,-502.75614636,0.00038356,2]
[314808090,1708559452993,-500.0,0.00038356,2]
[314808091,1708559453002,-500.0,0.00038356,2]
[314808092,1708559453012,-500.0,0.00038356,2]
[314808093,1708559453022,-750.21,0.00038356,2]
[314808094,1708559453031,-500.0,0.00038356,2]
[314808095,1708559453041,-500.0,0.00038356,2]
[314808096,1708559453050,-500.0,0.00038356,2]
[314808097,1708559453059,-500.0,0.00038356,2]
[314808098,1708559453069,-500.0,0.00038356,2]
[314808099,1708559453078,-500.0,0.00038356,2]
[314808100,1708559453087,-500.0,0.00038356,2]
[314808101,1708559453097,-725.75,0.00038356,2]
[314808102,1708559453106,-500.0,0.00038356,2]
[314808103,1708559453116,-500.0,0.00038356,2]
[314808104,1708559453126,-500.0,0.00038356,2]
[314808105,1708559453135,-1390.95,0.00038356,2]
[314808106,1708559453144,-500.0,0.00038356,2]
[314808107,1708559453153,-500.0,0.00038356,2]
[314808108,1708559453163,-500.0,0.00038356,2]
[314808109,1708559453172,-718.64,0.00038356,2]
[314808110,1708559453181,-500.0,0.00038356,2]
[314808111,1708559453190,-527.18,0.00038356,2]
[314808112,1708559453200,-500.0,0.00038356,2]
[314808113,1708559453209,-500.0,0.00038356,2]
[314808114,1708559453219,-1247.76,0.00038356,2]
[314808115,1708559453229,-512.43281263,0.00038356,2]
[314808116,1708559453239,-523.73,0.00038356,2]
[314808117,1708559453248,-500.0,0.00038356,2]
[314808118,1708559453257,-500.0,0.00038356,2]
[314808119,1708559453268,-1671.59,0.00038356,2]
[314808120,1708559453278,-5927.82,0.00038356,2]
[314808121,1708559453287,-561.98,0.00038356,2]
[314808122,1708559453296,-500.0,0.00038356,2]
[314808123,1708559453305,-500.0,0.00038356,2]
[314808124,1708559453314,-500.0,0.00038356,2]
[314808125,1708559453323,-2963.14,0.00038356,2]
[314808126,1708559453332,-660.51,0.00038356,2]
[314808127,1708559453341,-500.0,0.00038356,2]
[314808128,1708559453350,-500.0,0.00038356,2]
[314808129,1708559453360,-500.0,0.00038356,2]
[314808130,1708559453369,-590.25719107,0.00038356,2]
[314808131,1708559453378,-500.0,0.00038356,2]
[314808132,1708559453388,-500.0,0.00038356,2]
[314808133,1708559453397,-1267.33,0.00038356,2]
[314808134,1708559453408,-500.0,0.00038356,2]
[314808135,1708559453417,-500.0,0.00038356,2]
[314808136,1708559453426,-500.0,0.00038356,2]
[314808137,1708559453435,-500.0,0.00038356,2]
[314808138,1708559453445,-500.0,0.00038356,2]
[314808139,1708559453455,-500.0,0.00038356,2]
[314808140,1708559453464,-500.0,0.00038356,2]
[314808141,1708559453474,-1345.75,0.00038356,2]
[314808142,1708559453484,-327.88391211,0.00038356,2]
[314808143,1708559453493,-500.0,0.00038356,2]
[314808144,1708559453503,-500.0,0.00038356,2]
[314808145,1708559453515,-500.0,0.00038356,2]
[314808146,1708559453525,-500.0,0.00038356,2]
[314808147,1708559453534,-500.0,0.00038356,2]
[314808148,1708559453544,-1519.61,0.00038356,2]
[314808149,1708559453554,-3645.24,0.00038356,2]
[314808150,1708559453564,-571.81216033,0.00038356,2]
[314808151,1708559453575,-500.0,0.00038356,2]
[314808152,1708559453586,-1128.8,0.00038356,2]
[314808153,1708559453597,-500.0,0.00038356,2]
[314808154,1708559453607,-500.0,0.00038356,2]
[314808155,1708559453616,-595.5,0.00038356,2]
[314808156,1708559453626,-500.0,0.00038356,2]
[314808157,1708559453636,-500.0,0.00038356,2]
[314808158,1708559453646,-500.0,0.00038356,2]
[314808159,1708559453656,-500.0,0.00038356,2]
[314808160,1708559453665,-500.0,0.00038356,2]
[314808161,1708559453675,-500.0,0.00038356,2]
[314808162,1708559453685,-500.0,0.00038356,2]
[314808163,1708559453694,-500.0,0.00038356,2]
[314808164,1708559453704,-500.0,0.00038356,2]
[314808165,1708559453713,-500.0,0.00038356,2]
[314808166,1708559453722,-500.0,0.00038356,2]
[314808167,1708559453732,-7603.19,0.00038356,2]
[314808168,1708559453742,-10484.63,0.00038356,2]
[314808169,1708559453751,-763.63,0.00038356,2]
[314808170,1708559453764,-500.0,0.00038356,2]
[314808171,1708559453773,-220.79,0.00038356,2]
[314808172,1708559453782,-531.60992054,0.00038356,2]
[314808173,1708559453791,-607.49,0.00038356,2]
[314808174,1708559453800,-500.0,0.00038356,2]
[314808175,1708559453809,-2519.45,0.00038356,2]
[314808176,1708559453819,-2259.61,0.00038356,2]
[314808177,1708559453828,-500.0,0.00038356,2]
[314808178,1708559453837,-500.0,0.00038356,2]
[314808179,1708559453847,-327.24140291,0.00038356,2]
[314808180,1708559453855,-500.0,0.00038356,2]
[314808181,1708559453864,-664.37,0.00038356,2]
[314808182,1708559453873,-553.01660713,0.00038356,2]
[314808183,1708559453882,-500.0,0.00038356,2]
[314808184,1708559453892,-1034.71,0.00038356,2]
[314808185,1708559453901,-500.0,0.00038356,2]
[314808186,1708559453910,-500.0,0.00038356,2]
[314808187,1708559453920,-578.01,0.00038356,2]
[314808188,1708559453929,-1250.75,0.00038356,2]
[314808189,1708559453937,-500.0,0.00038356,2]
[314808190,1708559453947,-500.0,0.00038356,2]
[314808191,1708559453956,-500.0,0.00038356,2]
[314808192,1708559453968,-500.0,0.00038356,2]
[314808193,1708559453977,-505.92236292,0.00038356,2]
[314808194,1708559453986,-1936.69,0.00038356,2]
[314808195,1708559453995,-500.0,0.00038356,2]
[314808196,1708559454005,-500.0,0.00038356,2]
[314808197,1708559454016,-8935.39,0.00038356,2]
[314808198,1708559454025,-678.49,0.00038356,2]
[314808199,1708559454034,-500.0,0.00038356,2]
[314808200,1708559454045,-5029.32,0.00038356,2]
[314808201,1708559454055,-500.0,0.00038356,2]
[314808202,1708559454064,-500.0,0.00038356,2]
[314808203,1708559454073,-788.16,0.00038356,2]
[314808204,1708559454081,-2997.18,0.00038356,2]
[314808205,1708559454091,-5288.11,0.00038356,2]
[314808206,1708559454100,-500.0,0.00038356,2]
[314808207,1708559454109,-500.0,0.00038356,2]
[314808208,1708559454118,-500.0,0.00038356,2]
[314808209,1708559454127,-647.86,0.00038356,2]
[314808210,1708559454136,-1194.15,0.00038356,2]
[314808211,1708559454146,-500.0,0.00038356,2]
[314808212,1708559454155,-500.0,0.00038356,2]
[314808213,1708559454164,-1118.17,0.00038356,2]
[314808214,1708559454173,-500.0,0.00038356,2]
[314808215,1708559454182,-500.0,0.00038356,2]
[314808216,1708559454191,-614.78536327,0.00038356,2]
[314808217,1708559454200,-500.0,0.00038356,2]
[314808218,1708559454209,-500.0,0.00038356,2]
[314808219,1708559454219,-1497.73,0.00038356,2]
[314808220,1708559454228,-590.93074948,0.00038356,2]
[314808221,1708559454237,-2661.19,0.00038356,2]
[314808222,1708559454246,-500.0,0.00038356,2]
[314808223,1708559454256,-500.0,0.00038356,2]
[314808224,1708559454266,-500.0,0.00038356,2]
[314808225,1708559454275,-500.0,0.00038356,2]
[314808226,1708559454284,-500.0,0.00038356,2]
[314808227,1708559454293,-500.0,0.00038356,2]
[314808228,1708559454302,-500.0,0.00038356,2]
[314808229,1708559454312,-1086.98,0.00038356,2]
[314808230,1708559454321,-500.0,0.00038356,2]
[314808231,1708559454330,-500.0,0.00038356,2]
[314808232,1708559454339,-959.07,0.00038356,2]
[314808233,1708559454348,-500.0,0.00038356,2]
[314808234,1708559454357,-848.2,0.00038356,2]
[314808235,1708559454367,-500.0,0.00038356,2]
[314808236,1708559454377,-500.0,0.00038356,2]
[314808237,1708559454386,-677.86,0.00038356,2]
[314808238,1708559454396,-500.0,0.00038356,2]
[314808239,1708559454406,-500.0,0.00038356,2]
[314808240,1708559454415,-500.0,0.00038356,2]
[314808241,1708559454424,-500.0,0.00038356,2]
[314808242,1708559454434,-500.0,0.00038356,2]
[314808243,1708559454443,-500.0,0.00038356,2]
[314808244,1708559454451,-500.0,0.00038356,2]
[314808245,1708559454460,-500.0,0.00038356,2]
[314808246,1708559454470,-2340.39,0.00038356,2]
[314808247,1708559454479,-500.0,0.00038356,2]
[314808248,1708559454488,-500.0,0.00038356,2]
[314808249,1708559454498,-1000.0,0.00038356,7]
[314808250,1708559454507,-1313.69,0.00038356,2]
[314808251,1708559454517,-500.0,0.00038356,2]
[314808252,1708559454526,-2431.07,0.00038356,2]
[314808253,1708559454535,-500.0,0.00038356,2]
[314808254,1708559454545,-500.0,0.00038356,2]
[314808255,1708559454554,-500.0,0.00038356,2]
[314808256,1708559454563,-1068.94,0.00038356,2]
[314808257,1708559454572,-500.0,0.00038356,2]
[314808258,1708559454581,-500.0,0.00038356,2]
[314808259,1708559454590,-500.0,0.00038356,2]
[314808260,1708559454599,-1989.26,0.00038356,2]
[314808261,1708559454609,-505.48231282,0.00038356,2]
[314808262,1708559454618,-500.0,0.00038356,2]
[314808263,1708559454627,-500.0,0.00038356,2]
[314808264,1708559454636,-1488.76,0.00038356,2]
[314808265,1708559454645,-500.0,0.00038356,2]
[314808266,1708559454654,-500.0,0.00038356,2]
[314808267,1708559454663,-4619.67,0.00038356,2]
[314808268,1708559454673,-500.0,0.00038356,2]
[314808269,1708559454682,-500.0,0.00038356,2]
[314808270,1708559454692,-500.0,0.00038356,2]
[314808271,1708559454701,-500.0,0.00038356,2]
[314808272,1708559454739,-500.0,0.00038356,2]
[314808273,1708559454749,-500.0,0.00038356,2]
[314808274,1708559454758,-500.0,0.00038356,2]
[314808275,1708559454769,-500.0,0.00038356,2]
[314808276,1708559454779,-500.0,0.00038356,2]
[314808277,1708559454789,-500.0,0.00038356,2]
[314808278,1708559454798,-2932.11,0.00038356,2]
[314808279,1708559454808,-3031.22,0.00038356,2]
[314808280,1708559454817,-509.81919355,0.00038356,2]
[314808281,1708559454827,-540.32,0.00038356,2]
[314808282,1708559454836,-500.0,0.00038356,2]
[314808283,1708559454846,-515.49,0.00038356,2]
[314808284,1708559454855,-500.0,0.00038356,2]
[314808285,1708559454865,-500.0,0.00038356,2]
[314808286,1708559454874,-500.0,0.00038356,2]
[314808287,1708559454883,-500.0,0.00038356,2]
[314808288,1708559454892,-881.79,0.00038356,2]
[314808289,1708559454902,-500.0,0.00038356,2]
[314808290,1708559454911,-43148.81,0.00038356,2]
[314808291,1708559454921,-1074.58,0.00038356,2]
[314808292,1708559454930,-14972.56,0.00038356,2]
[314808293,1708559454940,-403.83235232,0.00038356,2]
[314808294,1708559455002,-96.16764768,0.00038356,2]
[314808295,1708559455011,-291.6551324,0.00038356,2]
[314808296,1708559455021,-38.51266701,0.00038356,2]
[314808297,1708559455033,-511.72733299,0.00038356,2]
[314808298,1708559455043,-100.03266353,0.00038356,2]
[314808299,1708559457397,-792.61354,0.0003452,2]
[314808300,1708559457406,-1188.92031,0.00034794,2]
[314808301,1708559457415,-1585.227081,0.00034931,2]
[314808302,1708559457425,-1981.533851,0.00035068,2]
[314808303,1708559457434,-2774.147391,0.00035342,2]
[314808304,1708559457444,-3170.454162,0.00036986,2]
[314808305,1708559457454,-150.0,0.00038345,2]
[314808306,1708559457465,-399.96733647,0.00038356,2]
[314808307,1708559457475,-500.0,0.00038356,2]
[314808308,1708559457486,-15051.9,0.00038356,2]
[314808309,1708559457495,-500.0,0.00038356,2]
[314808310,1708559457504,-500.0,0.00038356,2]
[314808311,1708559457515,-500.0,0.00038356,2]
[314808312,1708559457525,-731.59,0.00038356,2]
[314808313,1708559457534,-852.79,0.00038356,2]
[314808314,1708559457543,-616.96,0.00038356,2]
[314808315,1708559457552,-14933.96,0.00038356,2]
[314808316,1708559457561,-920.89,0.00038356,2]
[314808317,1708559457570,-500.0,0.00038356,2]
[314808318,1708559457580,-500.0,0.00038356,2]
[314808319,1708559457589,-500.0,0.00038356,2]
[314808320,1708559457598,-1871.15,0.00038356,2]
[314808321,1708559457607,-500.0,0.00038356,2]
[314808322,1708559457617,-786.17,0.00038356,2]
[314808323,1708559457626,-10922.27,0.00038356,2]
[314808324,1708559457635,-7587.22,0.00038356,2]
[314808325,1708559457644,-155.0,0.00038356,2]
[314808326,1708559457653,-500.0,0.00038356,2]
[314808327,1708559457662,-500.0,0.00038356,2]
[314808328,1708559457671,-540.6,0.00038356,2]
[314808329,1708559457681,-284.36846405,0.00038356,2]
[314808330,1708559457690,-743.21,0.00038356,2]
[314808331,1708559457699,-500.0,0.00038356,2]
[314808332,1708559457708,-500.0,0.00038356,2]
[314808333,1708559457717,-7188.69,0.00038356,2]
[314808334,1708559457727,-500.0,0.00038356,2]
[314808335,1708559457736,-500.0,0.00038356,2]
[314808336,1708559457745,-500.0,0.00038356,2]
[314808337,1708559457754,-500.0,0.00038356,2]
[314808338,1708559457765,-500.0,0.00038356,2]
[314808339,1708559457775,-500.0,0.00038356,2]
[314808340,1708559457784,-1158.07,0.00038356,2]
[314808341,1708559457795,-500.0,0.00038356,2]
[314808342,1708559457805,-500.0,0.00038356,2]
[314808343,1708559457816,-2202.44,0.00038356,2]
[314808344,1708559457825,-500.0,0.00038356,2]
[314808345,1708559457836,-500.0,0.00038356,2]
[314808346,1708559457845,-500.0,0.00038356,2]
[314808347,1708559457856,-765.46,0.00038356,2]
[314808348,1708559457866,-500.0,0.00038356,2]
[314808349,1708559457876,-500.0,0.00038356,2]
[314808350,1708559457886,-500.0,0.00038356,2]
[314808351,1708559457896,-2089.79,0.00038356,2]
[314808352,1708559457905,-500.0,0.00038356,2]
[314808353,1708559457914,-619.39,0.00038356,2]
[314808354,1708559457923,-500.0,0.00038356,2]
[314808355,1708559457934,-500.0,0.00038356,2]
[314808356,1708559457944,-500.0,0.00038356,2]
[314808357,1708559457955,-500.0,0.00038356,2]
[314808358,1708559457967,-500.0,0.00038356,2]
[314808359,1708559457978,-500.0,0.00038356,2]
[314808360,1708559457987,-500.0,0.00038356,2]
[314808361,1708559457997,-500.0,0.00038356,2]
[314808362,1708559458007,-1464.95,0.00038356,2]
[314808363,1708559458017,-1686.27,0.00038356,2]
[314808364,1708559458026,-1218.7,0.00038356,2]
[314808365,1708559458036,-500.0,0.00038356,2]
[314808366,1708559458045,-500.0,0.00038356,2]
[314808367,1708559458055,-500.0,0.00038356,14]
[314808368,1708559458065,-500.0,0.00038356,2]
[314808369,1708559458075,-500.0,0.00038356,2]
[314808370,1708559458084,-450.0,0.00038356,2]
[314808371,1708559458094,-500.0,0.00038356,2]
[314808372,1708559458103,-500.0,0.00038356,2]
[314808373,1708559458112,-500.0,0.00038356,2]
[314808374,1708559458121,-500.0,0.00038356,2]
[314808375,1708559458131,-500.0,0.00038356,2]
[314808376,1708559458140,-500.0,0.00038356,2]
[314808377,1708559458148,-500.0,0.00038356,2]
[314808378,1708559458158,-9338.2,0.00038356,2]
[314808379,1708559458167,-504.34,0.00038356,2]
[314808380,1708559458176,-4141.22,0.00038356,2]
[314808381,1708559458186,-1827.03,0.00038356,2]
[314808382,1708559458195,-500.0,0.00038356,2]
[314808383,1708559458205,-1311.35,0.00038356,2]
[314808384,1708559458214,-500.0,0.00038356,2]
[314808385,1708559458223,-500.0,0.00038356,2]
[314808386,1708559458232,-500.0,0.00038356,2]
[314808387,1708559458241,-519.74,0.00038356,2]
[314808388,1708559458251,-500.0,0.00038356,2]
[314808389,1708559458260,-500.0,0.00038356,2]
[314808390,1708559458270,-500.0,0.00038356,2]
[314808391,1708559458279,-759.52,0.00038356,2]
[314808392,1708559458289,-500.0,0.00038356,2]
[314808393,1708559458298,-500.0,0.00038356,2]
[314808394,1708559458308,-3086.63,0.00038356,2]
[314808395,1708559458317,-500.0,0.00038356,2]
[314808396,1708559458326,-500.0,0.00038356,2]
[314808397,1708559458336,-4284.8,0.00038356,2]
[314808398,1708559458346,-569.23,0.00038356,2]
[314808399,1708559458355,-500.0,0.00038356,2]
[314808400,1708559458364,-783.54,0.00038356,2]
[314808401,1708559458374,-526.89927967,0.00038356,2]
[314808402,1708559458384,-500.0,0.00038356,2]
[314808403,1708559458393,-1146.15,0.00038356,2]
[314808404,1708559458402,-500.0,0.00038356,2]
[314808405,1708559458411,-500.0,0.00038356,2]
[314808406,1708559458421,-500.0,0.00038356,2]
[314808407,1708559458430,-500.0,0.00038356,2]
[314808408,1708559458439,-500.0,0.00038356,2]
[314808409,1708559458449,-500.0,0.00038356,2]
[314808410,1708559458458,-500.0,0.00038356,2]
[314808411,1708559458468,-500.0,0.00038356,2]
[314808412,1708559458477,-500.0,0.00038356,2]
[314808413,1708559458486,-1931.75,0.00038356,2]
[314808414,1708559458496,-601.9,0.00038356,2]
[314808415,1708559458504,-911.37,0.00038356,2]
[314808416,1708559458515,-702.47,0.00038356,2]
[314808417,1708559458524,-963.96,0.00038356,2]
[314808418,1708559458534,-500.0,0.00038356,2]
[314808419,1708559458543,-559.11,0.00038356,2]
[314808420,1708559458552,-464.56796616,0.00038356,2]
[314808421,1708559458561,-2354.64,0.00038356,2]
[314808422,1708559458570,-1687.29,0.00038356,2]
[314808423,1708559458579,-500.0,0.00038356,2]
[314808424,1708559458588,-500.0,0.00038356,2]
[314808425,1708559458597,-500.0,0.00038356,2]
[314808426,1708559458606,-991.43,0.00038356,2]
[314808427,1708559458615,-500.0,0.00038356,2]
[314808428,1708559458624,-1610.79,0.00038356,2]
[314808429,1708559458634,-500.0,0.00038356,2]
[314808430,1708559458643,-500.0,0.00038356,2]
[314808431,1708559458652,-500.0,0.00038356,2]
[314808432,1708559458662,-896.14,0.00038356,2]
[314808433,1708559458671,-500.0,0.00038356,2]
[314808434,1708559458680,-500.0,0.00038356,2]
[314808435,1708559458689,-500.0,0.00038356,2]
[314808436,1708559458697,-1617.24,0.00038356,2]
[314808437,1708559458706,-500.0,0.00038356,2]
[314808438,1708559458715,-5491.87,0.00038356,2]
[314808439,1708559458724,-4611.68,0.00038356,2]
[314808440,1708559458734,-500.0,0.00038356,2]
[314808441,1708559458742,-500.0,0.00038356,2]
[314808442,1708559458751,-500.0,0.00038356,2]
[314808443,1708559458760,-500.0,0.00038356,2]
[314808444,1708559458769,-1918.63,0.00038356,2]
[314808445,1708559458779,-500.0,0.00038356,2]
[314808446,1708559458788,-500.0,0.00038356,2]
[314808447,1708559458797,-510.73508006,0.00038356,2]
[314808448,1708559458806,-500.0,0.00038356,2]
[314808449,1708559458815,-500.0,0.00038356,2]
[314808450,1708559458824,-4307.17,0.00038356,2]
[314808451,1708559458833,-798.39,0.00038356,2]
[314808452,1708559458845,-1614.6,0.00038356,2]
[314808453,1708559458854,-500.0,0.00038356,2]
[314808454,1708559458864,-500.0,0.00038356,2]
[314808455,1708559458873,-500.0,0.00038356,2]
[314808456,1708559458882,-500.0,0.00038356,2]
[314808457,1708559458891,-500.0,0.00038356,2]
[314808458,1708559458901,-982.62,0.00038356,2]
[314808459,1708559458911,-500.0,0.00038356,2]
[314808460,1708559458920,-877.34,0.00038356,2]
[314808461,1708559458929,-500.0,0.00038356,2]
[314808462,1708559458939,-606.74,0.00038356,2]
[314808463,1708559458947,-745.14,0.00038356,2]
[314808464,1708559458962,-500.0,0.00038356,2]
[314808465,1708559458971,-2384.88,0.00038356,2]
[314808466,1708559458982,-3370.72,0.00038356,2]
[314808467,1708559458992,-500.0,0.00038356,2]
[314808468,1708559459003,-500.0,0.00038356,2]
[314808469,1708559459012,-500.0,0.00038356,2]
[314808470,1708559459021,-973.48,0.00038356,2]
[314808471,1708559459033,-645.82,0.00038356,2]
[314808472,1708559459043,-1343.26,0.00038356,2]
[314808473,1708559459052,-500.0,0.00038356,2]
[314808474,1708559459061,-500.0,0.00038356,2]
[314808475,1708559459070,-500.0,0.00038356,2]
[314808476,1708559459079,-410.1143133,0.00038356,2]
[314808477,1708559459088,-2128.14,0.00038356,2]
[314808478,1708559459097,-821.86,0.00038356,2]
[314808479,1708559459106,-580.54,0.00038356,2]
[314808480,1708559459115,-500.0,0.00038356,2]
[314808481,1708559459125,-10179.29,0.00038356,2]
[314808482,1708559459134,-1606.79,0.00038356,2]
[314808483,1708559459143,-6971.37,0.00038356,2]
[314808484,1708559459152,-503.62774922,0.00038356,2]
[314808485,1708559459161,-500.0,0.00038356,2]
[314808486,1708559459170,-500.0,0.00038356,2]
[314808487,1708559459179,-500.0,0.00038356,2]
[314808488,1708559459188,-952.43,0.00038356,2]
[314808489,1708559459197,-3050.24,0.00038356,2]
[314808490,1708559459206,-500.0,0.00038356,2]
[314808491,1708559459215,-500.0,0.00038356,2]
[314808492,1708559459225,-1583.02,0.00038356,2]
[314808493,1708559459234,-12962.66,0.00038356,2]
[314808494,1708559459243,-320.86394905,0.00038356,2]
[314808495,1708559459253,-511.45428947,0.00038356,2]
[314808496,1708559459263,-308.24481915,0.00038356,2]
[314808497,1708559459281,-914.40518085,0.00038356,2]
[314808498,1708559459290,-933.45,0.00038356,2]
[314808499,1708559459299,-913.8,0.00038356,2]
[314808500,1708559459308,-500.0,0.00038356,2]
[314808501,1708559459318,-500.0,0.00038356,2]
[314808502,1708559459327,-500.0,0.00038356,2]
[314808503,1708559459336,-937.00709794,0.00038356,2]
[314808504,1708559459363,-35.80290206,0.00038356,2]
[314808505,1708559459372,-329.64898569,0.00038356,2]
[314808506,1708559459491,-20430.85035187,0.00027661,2]
[314808507,1708559459506,-1755.96054765,0.00027661,2]
[314808508,1708559459518,-2706.20268,0.00027661,2]
[314808511,1708559730488,239.72172782,0.0002756,30]
[314808513,1708559764844,204.0,0.00027301,5]
[314808514,1708559869968,212.93,0.00022026,2]
[314808515,1708559953256,1063254.26946015,0.00022026,2]
[314808516,1708559954801,890.16160362,0.00022026,2]
[314808517,1708559967262,1063254.26946015,0.00022026,2]
[314808518,1708559969086,890.16160362,0.00022026,2]
[314808519,1708559986795,890.16160362,0.00022026,2]
[314808520,1708559987273,1038361.25588063,0.00022026,2]